lending/lending_fUSD_20260310
["ID","MTS","AMOUNT","RATE_DAILY","PERIOD"]
[408122901,1773159038212,-151.0,0.0001699,2]
[408122902,1773159038222,-151.0,0.0001699,2]
[408122903,1773159038231,-151.0,0.0001699,2]
[408122904,1773159038241,-151.0,0.0001699,2]
[408122905,1773159038250,-151.0,0.0001699,2]
[408122906,1773159038259,-151.0,0.0001699,2]
[408122907,1773159038269,-151.0,0.0001699,2]
[408122908,1773159038278,-121.35273621,0.00017,2]
[408122909,1773159038290,-568.4,0.00017,2]
[408122910,1773159038302,-36804.40007119,0.00017,2]
[408122911,1773159038311,-510.0,0.00017,2]
[408122912,1773159038321,-166.66,0.00017095,2]
[408122913,1773159038330,-11447.62290897,0.00017167,2]
[408122915,1773159038339,-2351.0,0.00017181,2]
[408122917,1773159038348,-500.0,0.00017267,2]
[408122918,1773159038358,-2000.0,0.00017267,2]
[408122920,1773159038367,-2513.77,0.00017267,2]
[408122922,1773159038376,-3240.0,0.00017267,2]
[408122924,1773159038385,-224.13,0.00017267,2]
[408122926,1773159038395,-166.66,0.0001744,2]
[408122975,1773159038782,-11447.62290894,0.0001744,2]
[408122977,1773159038791,-300.0,0.000176,6]
[408122979,1773159038801,-2513.77,0.00017699,2]
[408122981,1773159038810,-600.0,0.000177,6]
[408122983,1773159038820,-170.962384,0.00017701,2]
[408122985,1773159038830,-250.0,0.00017707,2]
[408122987,1773159038839,-11447.62290894,0.00017713,2]
[408122990,1773159038848,-166.66,0.00017785,2]
[408122992,1773159038857,-900.0,0.000178,6]
[408122993,1773159038867,-800.0,0.00017808,2]
[408122996,1773159038876,-1007.12616149,0.0001786,2]
[408122998,1773159038885,-2500.0,0.00017863,2]
[408123000,1773159038896,-200.0,0.00017887,2]
[408123002,1773159038905,-1228.83497507,0.0001789,2]
[408123004,1773159038915,-1076.79989794,0.0001789,2]
[408123006,1773159038925,-4749.22872573,0.0001789,2]
[408123008,1773159038935,-515.7545181,0.000179,2]
[408123010,1773159038944,-515.75451807,0.000179,2]
[408123012,1773159038953,-515.75451807,0.000179,2]
[408123014,1773159038962,-515.75451807,0.000179,2]
[408123016,1773159038972,-1212.3705941,0.000179,2]
[408123018,1773159038981,-1300.0,0.000179,6]
[408123020,1773159038991,-248.14,0.00017952,3]
[408123022,1773159039000,-644.10243062,0.00017962,2]
[408123024,1773159039010,-644.10243062,0.00017962,2]
[408123026,1773159039019,-644.10243062,0.00017962,2]
[408123028,1773159039028,-644.10243062,0.00017962,2]
[408123030,1773159039038,-644.10243062,0.00017962,2]
[408123032,1773159039047,-644.10243062,0.00017962,2]
[408123034,1773159039057,-644.10243062,0.00017962,2]
[408123036,1773159039066,-644.10243062,0.00017962,2]
[408123038,1773159039076,-644.10243062,0.00017962,2]
[408123040,1773159039086,-644.10243062,0.00017962,2]
[408123042,1773159039096,-644.10243062,0.00017962,2]
[408123044,1773159039107,-644.10243062,0.00017962,2]
[408123046,1773159039116,-644.10243062,0.00017962,2]
[408123048,1773159039126,-644.10243062,0.00017962,2]
[408123050,1773159039136,-644.10243062,0.00017962,2]
[408123052,1773159039145,-644.10243062,0.00017962,2]
[408123054,1773159039155,-644.10243062,0.00017962,2]
[408123056,1773159039164,-644.10243062,0.00017962,2]
[408123057,1773159039174,-644.10243062,0.00017962,2]
[408123058,1773159039183,-644.10243062,0.00017962,2]
[408123059,1773159039192,-644.10243062,0.00017962,2]
[408123060,1773159039202,-644.10243062,0.00017962,2]
[408123061,1773159039211,-644.10243062,0.00017962,2]
[408123062,1773159039222,-644.10243062,0.00017962,2]
[408123063,1773159039232,-644.10243062,0.00017962,2]
[408123064,1773159039241,-644.10243062,0.00017962,2]
[408123065,1773159039250,-644.10243062,0.00017962,2]
[408123066,1773159039260,-644.10243062,0.00017962,2]
[408123067,1773159039269,-644.10243062,0.00017962,2]
[408123068,1773159039278,-644.10243062,0.00017962,2]
[408123069,1773159039287,-644.10243062,0.00017962,2]
[408123070,1773159039296,-644.10243062,0.00017962,2]
[408123071,1773159039306,-644.10243062,0.00017962,2]
[408123072,1773159039315,-644.10243062,0.00017962,2]
[408123073,1773159039324,-644.10243062,0.00017962,2]
[408123074,1773159039334,-644.10243062,0.00017962,2]
[408123075,1773159039343,-644.10243062,0.00017962,2]
[408123076,1773159039352,-644.10243062,0.00017962,2]
[408123077,1773159039362,-644.10243062,0.00017962,2]
[408123078,1773159039371,-644.10243062,0.00017962,2]
[408123079,1773159039380,-644.10243062,0.00017962,2]
[408123080,1773159039389,-644.10243062,0.00017962,2]
[408123081,1773159039399,-644.10243062,0.00017962,2]
[408123082,1773159039408,-644.10243062,0.00017962,2]
[408123083,1773159039417,-644.10243062,0.00017962,2]
[408123084,1773159039427,-644.10243062,0.00017962,2]
[408123086,1773159039436,-644.10243062,0.00017962,2]
[408123087,1773159039446,-644.10243062,0.00017962,2]
[408123090,1773159039455,-644.10243062,0.00017962,2]
[408123091,1773159039464,-656.63404363,0.00017962,2]
[408123093,1773159039474,-656.63404363,0.00017962,2]
[408123096,1773159039485,-656.63404363,0.00017962,2]
[408123098,1773159039494,-656.63404363,0.00017962,2]
[408123100,1773159039503,-656.63404363,0.00017962,2]
[408123102,1773159039513,-656.63404363,0.00017962,2]
[408123104,1773159039532,-656.63404363,0.00017962,2]
[408123106,1773159039542,-656.63404363,0.00017962,2]
[408123108,1773159039553,-656.63404363,0.00017962,2]
[408123109,1773159039563,-656.63404363,0.00017962,2]
[408123111,1773159039572,-656.63404363,0.00017962,2]
[408123113,1773159039581,-656.63404363,0.00017962,2]
[408123115,1773159039591,-656.63404363,0.00017962,2]
[408123117,1773159039600,-656.63404363,0.00017962,2]
[408123119,1773159039610,-656.63404363,0.00017962,2]
[408123121,1773159039620,-656.63404363,0.00017962,2]
[408123123,1773159039630,-656.63404363,0.00017962,2]
[408123125,1773159039640,-656.63404363,0.00017962,2]
[408123127,1773159039650,-656.63404363,0.00017962,2]
[408123129,1773159039660,-656.63404363,0.00017962,2]
[408123131,1773159039670,-656.63404363,0.00017962,2]
[408123133,1773159039680,-656.63404363,0.00017962,2]
[408123135,1773159039689,-656.63404363,0.00017962,2]
[408123137,1773159039700,-656.63404363,0.00017962,2]
[408123139,1773159039709,-656.63404363,0.00017962,2]
[408123141,1773159039718,-656.63404363,0.00017962,2]
[408123143,1773159039728,-656.63404363,0.00017962,2]
[408123145,1773159039738,-500.0,0.00017962,2]
[408123147,1773159039748,-500.0,0.00017962,2]
[408123149,1773159039757,-363.79317763,0.00017962,2]
[408123150,1773159039766,-696.7708493,0.00017962,2]
[408123151,1773159039776,-696.7708493,0.00017962,2]
[408123152,1773159039786,-696.7708493,0.00017962,2]
[408123153,1773159039795,-696.7708493,0.00017962,2]
[408123154,1773159039805,-696.7708493,0.00017962,2]
[408123155,1773159039815,-696.7708493,0.00017962,2]
[408123156,1773159039824,-696.7708493,0.00017962,2]
[408123157,1773159039835,-696.7708493,0.00017962,2]
[408123158,1773159039844,-696.7708493,0.00017962,2]
[408123159,1773159039855,-696.7708493,0.00017962,2]
[408123160,1773159039864,-696.7708493,0.00017962,2]
[408123161,1773159039874,-696.7708493,0.00017962,2]
[408123162,1773159039884,-696.7708493,0.00017962,2]
[408123163,1773159039895,-696.7708493,0.00017962,2]
[408123164,1773159039905,-1927.09409047,0.00017962,2]
[408123165,1773159039915,-500.0,0.00017962,2]
[408123166,1773159039925,-500.0,0.00017962,2]
[408123167,1773159039936,-500.0,0.00017962,2]
[408123168,1773159039945,-197.05279361,0.00017962,2]
[408123169,1773159039955,-500.0,0.00017963,2]
[408123170,1773159039964,-500.0,0.00017963,2]
[408123171,1773159039974,-500.0,0.00017963,2]
[408123172,1773159039983,-500.0,0.00017963,2]
[408123173,1773159039993,-500.0,0.00017963,2]
[408123174,1773159040002,-500.0,0.00017963,2]
[408123175,1773159040012,-318.5750782,0.00017963,2]
[408123176,1773159040021,-500.0,0.00017963,2]
[408123177,1773159040032,-632.12441154,0.00017963,2]
[408123178,1773159040043,-500.0,0.00017963,2]
[408123179,1773159040053,-500.0,0.00017963,2]
[408123180,1773159040063,-500.0,0.00017963,2]
[408123181,1773159040073,-500.0,0.00017963,2]
[408123182,1773159040083,-500.0,0.00017963,2]
[408123183,1773159040093,-500.0,0.00017963,2]
[408123184,1773159040102,-272.4416769,0.00017963,2]
[408123185,1773159040112,-500.0,0.00017963,2]
[408123186,1773159040122,-500.0,0.00017963,2]
[408123187,1773159040132,-500.0,0.00017963,2]
[408123188,1773159040143,-500.0,0.00017963,2]
[408123189,1773159040153,-500.0,0.00017963,2]
[408123190,1773159040163,-500.0,0.00017963,2]
[408123191,1773159040173,-500.0,0.00017963,2]
[408123192,1773159040183,-500.0,0.00017963,2]
[408123193,1773159040193,-500.0,0.00017963,2]
[408123194,1773159040203,-500.0,0.00017963,2]
[408123195,1773159040213,-500.0,0.00017963,2]
[408123196,1773159040222,-500.0,0.00017963,2]
[408123197,1773159040232,-500.0,0.00017963,2]
[408123198,1773159040242,-500.0,0.00017963,2]
[408123199,1773159040252,-695.39793187,0.00017964,2]
[408123200,1773159040262,-1500.0,0.00017964,2]
[408123202,1773159040271,-250.0,0.00017964,2]
[408123203,1773159040280,-1500.0,0.00017964,2]
[408123206,1773159040290,-250.0,0.00017964,2]
[408123208,1773159040304,-1592.44280863,0.00017964,2]
[408123210,1773159040314,-250.0,0.00017964,2]
[408123212,1773159040324,-250.0,0.00017964,2]
[408123214,1773159040334,-250.0,0.00017964,2]
[408123216,1773159040345,-668.65185757,0.00017964,2]
[408123218,1773159040354,-250.0,0.00017964,2]
[408123220,1773159040364,-250.0,0.00017964,2]
[408123221,1773159040374,-250.0,0.00017964,2]
[408123223,1773159040384,-578.20924308,0.00017964,2]
[408123225,1773159040395,-250.0,0.00017964,2]
[408123227,1773159040404,-250.0,0.00017964,2]
[408123229,1773159040414,-250.0,0.00017964,2]
[408123231,1773159040424,-250.0,0.00017964,2]
[408123233,1773159040434,-1000.0,0.00017964,2]
[408123235,1773159040444,-250.0,0.00017964,2]
[408123237,1773159040454,-250.0,0.00017964,2]
[408123239,1773159040464,-773.73733787,0.00017964,2]
[408123241,1773159040475,-250.0,0.00017964,2]
[408123243,1773159040489,-250.0,0.00017964,2]
[408123245,1773159040499,-250.0,0.00017964,2]
[408123246,1773159040509,-250.0,0.00017964,2]
[408123248,1773159040519,-256.00624791,0.00017964,2]
[408123250,1773159040529,-174.61919141,0.00017964,2]
[408123252,1773159040539,-1000.0,0.00017964,2]
[408123254,1773159040548,-1500.0,0.00017964,2]
[408123256,1773159040560,-1500.0,0.00017964,2]
[408123258,1773159040570,-1500.0,0.00017964,2]
[408123260,1773159040579,-151.0,0.00017964,2]
[408123262,1773159040589,-1500.0,0.00017964,2]
[408123264,1773159040599,-1128.72123701,0.00017964,2]
[408123265,1773159040608,-1500.0,0.00017964,2]
[408123266,1773159040618,-1500.0,0.00017964,2]
[408123267,1773159040628,-1041.02516385,0.00017964,2]
[408123268,1773159040638,-10000.0,0.00017964,2]
[408123269,1773159040651,-7573.58165349,0.00017964,2]
[408123270,1773159040661,-500.0,0.00017964,2]
[408123271,1773159040671,-266.11523531,0.00017964,2]
[408123272,1773159040680,-262.90206542,0.00017964,2]
[408123273,1773159040690,-200.0,0.00017964,2]
[408123274,1773159040700,-284.23461193,0.00017964,2]
[408123275,1773159040710,-743.50770149,0.00017964,2]
[408123276,1773159040720,-11447.62290894,0.00017987,2]
[408123277,1773159040731,-5004.90001375,0.00018,5]
[408123278,1773159040741,-151.0,0.00018019,2]
[408123279,1773159040751,-5330.31915878,0.0001803,3]
[408123280,1773159040762,-436.27017402,0.0001803,2]
[408123281,1773159040772,-10780.94202039,0.0001803,2]
[408123282,1773159040782,-356.9545172,0.0001803,2]
[408123283,1773159040792,-1403.21204333,0.0001803,2]
[408123284,1773159040802,-157.7007942,0.00018031,2]
[408123285,1773159040812,-151.0,0.00018074,2]
[408123286,1773159040822,-177.0,0.0001811,2]
[408123287,1773159040832,-748.36535723,0.0001812,2]
[408123288,1773159040843,-151.0,0.00018129,2]
[408123289,1773159040853,-500.0,0.00018129,2]
[408123290,1773159040863,-500.0,0.00018129,2]
[408123291,1773159040873,-514.75306544,0.00018129,2]
[408123292,1773159040883,-500.0,0.00018129,2]
[408123293,1773159040901,-500.0,0.00018129,2]
[408123294,1773159040911,-500.0,0.00018129,2]
[408123295,1773159040921,-344.70521843,0.00018129,2]
[408123296,1773159040931,-480.96082413,0.00018129,2]
[408123297,1773159040941,-500.0,0.00018129,2]
[408123298,1773159040951,-273.79286686,0.00018129,2]
[408123299,1773159040962,-500.0,0.00018129,2]
[408123300,1773159040972,-500.0,0.00018129,2]
[408123301,1773159040983,-1067.0,0.0001813,2]
[408123302,1773159040992,-10860.43301895,0.0001813,3]
[408123303,1773159041001,-728206.75651989,0.0001813,2]
[408123305,1773159041774,-716.49020845,0.0001813,2]
[408123306,1773159041811,-1134245.19788989,0.0001813,2]
[408123307,1773159041830,-992.10538075,0.0001813,2]
[408123308,1773159041843,-412.8989822,0.0001813,2]
[408123309,1773159041855,-2341.34700145,0.0001813,2]
[408123312,1773159043168,-729.40411693,0.0001813,2]
[408123316,1773159046139,-10873.6397,0.0001813,2]
[408123317,1773159046152,-5422.0,0.0001813,2]
[408123320,1773159085698,357.5607,0.00014099,2]
[408123321,1773159136346,500.0,9.157e-05,2]
[408123323,1773159381657,100000.0,0.0002,120]
[408123325,1773159913370,463.89,0.00019,120]
[408123350,1773160232117,-1121.57966402,0.00014998,2]
[408123379,1773160232927,-78.42033598,0.00014998,2]
[408123380,1773160232937,-300.0,0.00014999,2]
[408123381,1773160232946,-300.0,0.00014999,2]
[408123382,1773160232956,-57.47606461,0.00014999,2]
[408123383,1773160232967,-122.52393539,0.00014999,2]
[408123384,1773160232977,-250.0,0.00014999,2]
[408123385,1773160232986,-573.95966491,0.00014999,2]
[408123386,1773160233008,-13.66208631,0.00014999,2]
[408123387,1773160233017,-250.0,0.00015,2]
[408123388,1773160233026,-500.0,0.00015,30]
[408123389,1773160233035,-855.65740375,0.00015,30]
[408123390,1773160233044,-717.74039263,0.00015,30]
[408123391,1773160233054,-1163.33182763,0.0001563,2]
[408123392,1773160233463,-469.573221,0.0001563,2]
[408123393,1773160233492,-318.75595281,0.0001563,2]
[408123394,1773160233503,-2740.00251569,0.0001563,2]
[408123395,1773160233519,-1413.16648287,0.0001563,2]
[408123396,1773160233529,-5264.65,0.00015642,2]
[408123397,1773160233538,-150.0,0.00015661,2]
[408123398,1773160233549,-246.69,0.00015719,2]
[408123399,1773160233558,-200.0,0.00015847,2]
[408123400,1773160233567,-1600.0,0.00015848,2]
[408123401,1773160233576,-361.206653,0.0001598,7]
[408123402,1773160233586,-520.93,0.00016,2]
[408123403,1773160233595,-2000.0,0.0001608,2]
[408123404,1773160233604,-420.0,0.00016416,2]
[408123405,1773160233613,-286.0,0.00016416,2]
[408123406,1773160233623,-175.0,0.00016477,2]
[408123407,1773160233633,-194.57847078,0.00016498,2]
[408123408,1773160233642,-550.0,0.00016498,2]
[408123409,1773160233651,-1303.9101,0.00016498,2]
[408123410,1773160233663,-376.0899,0.00016498,2]
[408123411,1773160233672,-1671.0157578,0.00016499,2]
[408123412,1773160233681,-250.0,0.00016499,2]
[408123413,1773160233690,-600.0,0.00016499,2]
[408123414,1773160233699,-250.0,0.00016499,2]
[408123415,1773160233709,-3500.0,0.000165,5]
[408123416,1773160233718,-500.0,0.00016547,2]
[408123417,1773160233728,-500.0,0.00016547,2]
[408123418,1773160233737,-150.0,0.00016547,2]
[408123419,1773160233746,-500.0,0.00016547,2]
[408123420,1773160233756,-500.0,0.00016547,2]
[408123421,1773160233765,-150.0,0.00016547,2]
[408123422,1773160233775,-500.0,0.00016547,2]
[408123423,1773160233788,-151.19383815,0.00016547,2]
[408123424,1773160233802,-246.69,0.00016593,2]
[408123425,1773160233811,-500.0,0.00016602,2]
[408123426,1773160233820,-500.0,0.00016602,2]
[408123427,1773160233829,-500.0,0.00016602,2]
[408123428,1773160233841,-500.0,0.00016602,2]
[408123429,1773160233850,-150.0,0.00016602,2]
[408123430,1773160233860,-500.0,0.00016602,2]
[408123431,1773160233868,-946.31,0.0001663,2]
[408123432,1773160233880,-188.55,0.00016649,2]
[408123433,1773160233889,-500.0,0.00016657,2]
[408123434,1773160233898,-500.0,0.00016657,2]
[408123435,1773160233908,-500.0,0.00016657,2]
[408123436,1773160233917,-500.0,0.00016657,2]
[408123437,1773160233927,-200.0,0.00016657,2]
[408123438,1773160233936,-500.0,0.00016657,2]
[408123439,1773160233945,-508.0,0.00016711,2]
[408123440,1773160233955,-350.0,0.00016711,2]
[408123441,1773160233964,-500.0,0.00016711,2]
[408123442,1773160233973,-348.0,0.00016711,2]
[408123443,1773160233984,-317.21851997,0.00016711,2]
[408123444,1773160233993,-673.9381,0.00016721,2]
[408123445,1773160234003,-11694.20890915,0.00016721,2]
[408123446,1773160234012,-2500.0,0.00016722,2]
[408123447,1773160234023,-1871.8613,0.00016722,2]
[408123448,1773160234031,-500.0,0.00016766,2]
[408123449,1773160234042,-157.7007942,0.00016773,2]
[408123450,1773160234051,-14486.38173997,0.00016773,2]
[408123451,1773160234061,-3810.42098749,0.00016773,2]
[408123452,1773160234071,-200.0,0.00016812,2]
[408123453,1773160234081,-248.14,0.00016812,3]
[408123454,1773160234090,-162.785,0.00016817,2]
[408123455,1773160234100,-2744.6,0.00016817,2]
[408123456,1773160234109,-151.0,0.00016819,2]
[408123457,1773160234119,-480.96082413,0.00016821,2]
[408123458,1773160234128,-500.0,0.00016821,2]
[408123459,1773160234138,-344.70521843,0.00016821,2]
[408123460,1773160234147,-273.79286686,0.00016821,2]
[408123461,1773160234156,-500.0,0.00016821,2]
[408123462,1773160234166,-500.0,0.00016821,2]
[408123463,1773160234176,-500.0,0.00016821,2]
[408123464,1773160234185,-500.0,0.00016821,2]
[408123465,1773160234194,-500.0,0.00016821,2]
[408123466,1773160234203,-274.78970882,0.00016821,2]
[408123467,1773160234213,-500.0,0.00016821,2]
[408123468,1773160234222,-500.0,0.00016821,2]
[408123469,1773160234231,-500.0,0.00016821,2]
[408123470,1773160234240,-500.0,0.00016821,2]
[408123471,1773160234249,-500.0,0.00016821,2]
[408123472,1773160234258,-500.0,0.00016821,2]
[408123473,1773160234267,-500.0,0.00016821,2]
[408123474,1773160234277,-500.0,0.00016821,2]
[408123475,1773160234287,-500.0,0.00016821,2]
[408123476,1773160234297,-500.0,0.00016821,2]
[408123477,1773160234307,-500.0,0.00016821,2]
[408123478,1773160234316,-500.0,0.00016821,2]
[408123479,1773160234325,-500.0,0.00016821,2]
[408123480,1773160234335,-500.0,0.00016821,2]
[408123481,1773160234344,-337.7837914,0.00016821,2]
[408123482,1773160234352,-500.0,0.00016821,2]
[408123483,1773160234362,-500.0,0.00016821,2]
[408123484,1773160234371,-500.0,0.00016821,2]
[408123485,1773160234383,-500.0,0.00016821,2]
[408123486,1773160234392,-500.0,0.00016821,2]
[408123487,1773160234402,-500.0,0.00016821,2]
[408123488,1773160234411,-500.0,0.00016821,2]
[408123489,1773160234420,-500.0,0.00016821,2]
[408123490,1773160234429,-500.0,0.00016821,2]
[408123491,1773160234438,-500.0,0.00016821,2]
[408123492,1773160234447,-500.0,0.00016821,2]
[408123493,1773160234456,-500.0,0.00016821,2]
[408123494,1773160234465,-500.0,0.00016821,2]
[408123495,1773160234474,-500.0,0.00016821,2]
[408123496,1773160234483,-500.0,0.00016821,2]
[408123497,1773160234492,-500.0,0.00016821,2]
[408123498,1773160234507,-500.0,0.00016821,2]
[408123499,1773160234518,-500.0,0.00016821,2]
[408123500,1773160234528,-500.0,0.00016821,2]
[408123501,1773160234538,-500.0,0.00016821,2]
[408123502,1773160234548,-500.0,0.00016821,2]
[408123503,1773160234558,-500.0,0.00016821,2]
[408123504,1773160234568,-500.0,0.00016821,2]
[408123505,1773160234578,-500.0,0.00016821,2]
[408123506,1773160234588,-500.0,0.00016821,2]
[408123507,1773160234598,-500.0,0.00016821,2]
[408123508,1773160234610,-500.0,0.00016821,2]
[408123509,1773160234620,-500.0,0.00016821,2]
[408123510,1773160234630,-500.0,0.00016821,2]
[408123511,1773160234639,-318.5750782,0.00016821,2]
[408123512,1773160234648,-500.0,0.00016821,2]
[408123513,1773160234658,-500.0,0.00016821,2]
[408123514,1773160234668,-500.0,0.00016821,2]
[408123515,1773160234677,-500.0,0.00016821,2]
[408123516,1773160234686,-363.79317763,0.00016821,2]
[408123517,1773160234696,-500.0,0.00016821,2]
[408123518,1773160234707,-197.05279361,0.00016821,2]
[408123519,1773160234716,-632.12441154,0.00016821,2]
[408123520,1773160234726,-500.0,0.00016821,2]
[408123521,1773160234737,-500.0,0.00016821,2]
[408123522,1773160234747,-232.86163834,0.00016821,2]
[408123523,1773160234757,-500.0,0.00016821,2]
[408123524,1773160234769,-500.0,0.00016821,2]
[408123525,1773160234780,-500.0,0.00016821,2]
[408123526,1773160234790,-500.0,0.00016821,2]
[408123527,1773160234804,-500.0,0.00016821,2]
[408123528,1773160234813,-500.0,0.00016821,2]
[408123529,1773160234822,-500.0,0.00016821,2]
[408123530,1773160234832,-500.0,0.00016821,2]
[408123531,1773160234842,-500.0,0.00016821,2]
[408123532,1773160234851,-500.0,0.00016821,2]
[408123533,1773160234860,-500.0,0.00016821,2]
[408123534,1773160234872,-272.4416769,0.00016821,2]
[408123535,1773160234882,-500.0,0.00016821,2]
[408123536,1773160234891,-500.0,0.00016821,2]
[408123537,1773160234901,-500.0,0.00016821,2]
[408123538,1773160234912,-500.0,0.00016821,2]
[408123539,1773160234922,-500.0,0.00016821,2]
[408123540,1773160234933,-500.0,0.00016821,2]
[408123541,1773160234943,-500.0,0.00016821,2]
[408123542,1773160234952,-500.0,0.00016821,2]
[408123543,1773160234963,-500.0,0.00016821,2]
[408123544,1773160234972,-500.0,0.00016821,2]
[408123545,1773160234981,-500.0,0.00016821,2]
[408123546,1773160234991,-500.0,0.00016821,2]
[408123547,1773160235000,-500.0,0.00016821,2]
[408123548,1773160235010,-1169.22043627,0.00016821,2]
[408123549,1773160235020,-1169.22043627,0.00016821,2]
[408123550,1773160235030,-1169.22043627,0.00016821,2]
[408123551,1773160235039,-1169.22043627,0.00016821,2]
[408123552,1773160235049,-1169.22043627,0.00016821,2]
[408123553,1773160235059,-1169.22043627,0.00016821,2]
[408123554,1773160235068,-1169.22043627,0.00016821,2]
[408123555,1773160235079,-1169.22043627,0.00016821,2]
[408123556,1773160235088,-1169.22043627,0.00016821,2]
[408123557,1773160235099,-1169.22043627,0.00016821,2]
[408123558,1773160235109,-1169.22043627,0.00016821,2]
[408123559,1773160235118,-1169.22043627,0.00016821,2]
[408123560,1773160235128,-1169.22043627,0.00016821,2]
[408123561,1773160235138,-1169.22043627,0.00016821,2]
[408123562,1773160235147,-1169.22043627,0.00016821,2]
[408123563,1773160235157,-1169.22043627,0.00016821,2]
[408123564,1773160235167,-1169.22043627,0.00016821,2]
[408123565,1773160235177,-1169.22043627,0.00016821,2]
[408123566,1773160235186,-1169.22043627,0.00016821,2]
[408123567,1773160235196,-1169.22043627,0.00016821,2]
[408123568,1773160235206,-1169.22043627,0.00016821,2]
[408123569,1773160235215,-1169.22043627,0.00016821,2]
[408123570,1773160235225,-1169.22043627,0.00016821,2]
[408123571,1773160235234,-1169.22043627,0.00016821,2]
[408123572,1773160235244,-1169.22043627,0.00016821,2]
[408123573,1773160235253,-1169.22043627,0.00016821,2]
[408123574,1773160235263,-1169.22043627,0.00016821,2]
[408123575,1773160235272,-1169.22043627,0.00016821,2]
[408123576,1773160235282,-1169.22043627,0.00016821,2]
[408123577,1773160235292,-1114.19829809,0.00016821,2]
[408123578,1773160235302,-1114.19829809,0.00016821,2]
[408123579,1773160235311,-1114.19829809,0.00016821,2]
[408123580,1773160235321,-1114.19829809,0.00016821,2]
[408123581,1773160235330,-1114.19829809,0.00016821,2]
[408123582,1773160235340,-1114.19829809,0.00016821,2]
[408123583,1773160235350,-1114.19829809,0.00016821,2]
[408123584,1773160235359,-1114.19829809,0.00016821,2]
[408123585,1773160235369,-1114.19829809,0.00016821,2]
[408123586,1773160235379,-1114.19829809,0.00016821,2]
[408123587,1773160235389,-1114.19829809,0.00016821,2]
[408123588,1773160235399,-1114.19829809,0.00016821,2]
[408123589,1773160235408,-1114.19829809,0.00016821,2]
[408123590,1773160235418,-1114.19829809,0.00016821,2]
[408123591,1773160235428,-1114.19829809,0.00016821,2]
[408123592,1773160235438,-1114.19829809,0.00016821,2]
[408123593,1773160235448,-1114.19829809,0.00016821,2]
[408123594,1773160235457,-179.37782839,0.00016821,2]
[408123595,1773160235467,-574.91749054,0.00016821,2]
[408123596,1773160235477,-300.0,0.00016821,2]
[408123597,1773160235486,-500.0,0.00016821,2]
[408123598,1773160235496,-500.0,0.00016821,2]
[408123599,1773160235505,-500.0,0.00016821,2]
[408123600,1773160235515,-500.0,0.00016821,2]
[408123601,1773160235524,-500.0,0.00016821,2]
[408123602,1773160235534,-500.0,0.00016821,2]
[408123603,1773160235544,-500.0,0.00016821,2]
[408123604,1773160235553,-500.0,0.00016821,2]
[408123605,1773160235563,-500.0,0.00016821,2]
[408123606,1773160235573,-500.0,0.00016821,2]
[408123607,1773160235582,-500.0,0.00016821,2]
[408123608,1773160235591,-500.0,0.00016821,2]
[408123609,1773160235601,-1123.07,0.00016821,2]
[408123610,1773160235610,-122770.2587931,0.00016822,2]
[408123611,1773160235653,-77348.85961952,0.00016822,2]
[408123612,1773160235665,-992.52974602,0.00016822,2]
[408123613,1773160235677,-848.47439461,0.00016822,2]
[408123615,1773160238331,-163.39,0.00016812,2]
[408123616,1773160238342,-163.39,0.00016812,2]
[408123617,1773160238353,-163.39,0.00016812,2]
[408123618,1773160238362,-163.39,0.00016812,2]
[408123619,1773160238371,-163.39,0.00016812,2]
[408123620,1773160238381,-149.6,0.00016822,2]
[408123621,1773160238393,-874.14799494,0.00016822,2]